bitfinex/quotes_SOLUSD_20241126
["timestamp","ask_amount","ask_price","bid_price","bid_amount"]
[1732583703690,12.89990894,236.82,236.75,17.12360894]
[1732583703884,32.89990894,236.84,236.75,17.12360894]
[1732583704990,12.89990894,236.86,236.77,12.89990894]
[1732583705572,12.89990894,236.86,236.78,4.2233]
[1732583705788,15.01080894,236.86,236.78,4.2233]
[1732583706185,12.89990894,236.84,236.78,4.2233]
[1732583706701,12.89990894,236.84,236.75,12.89990894]
[1732583706992,12.89990894,236.8,236.72,4.2244]
[1732583707297,12.89990894,236.78,236.71,40.14600894]
[1732583707901,12.89990894,236.76,236.68,4.2251]
[1732583708300,2.1116,236.78,236.67,12.89990894]
[1732583708301,12.89990894,236.74,236.67,12.89990894]
[1732583708488,12.89990894,236.74,236.66,4.2253]
[1732583708888,12.89990894,236.74,236.65,27.95570894]
[1732583709189,12.89990894,236.72,236.65,15.0558]
[1732583709700,12.89990894,236.72,236.65,32.18130894]
[1732583709908,12.89990894,236.76,236.67,12.89990894]
[1732583710089,20.0,236.77,236.69,12.89990894]
[1732583710286,12.89990894,236.78,236.65,19.2814]
[1732583710287,12.89990894,236.8,236.73,12.89990894]
[1732583710806,12.89990894,236.82,236.75,12.89990894]
[1732583711008,12.89377356,236.87,236.77,12.89990894]
[1732583711009,12.89990894,236.86,236.77,12.89990894]
[1732583711488,12.89990894,236.82,236.74,15.0558]
[1732583711818,12.89990894,236.8,236.74,15.0558]
[1732583712185,12.89990894,236.78,236.71,12.89990894]
[1732583712589,2.1113,236.82,236.71,12.89990894]
[1732583712590,12.89990894,236.82,236.73,12.89990894]
[1732583713293,15.01110894,236.84,236.75,12.89990894]
[1732583713612,12.89990894,236.84,236.77,12.89990894]
[1732583713905,12.89990894,236.84,236.77,17.12330894]
[1732583714106,12.89990894,236.82,236.75,17.12350894]
[1732583714688,12.89990894,236.84,236.77,12.89990894]
[1732583714897,12.89990894,236.84,236.75,17.12350894]
[1732583715107,12.89990894,236.82,236.75,17.12350894]
[1732583716011,12.89990894,236.8,236.72,12.89990894]
[1732583716308,12.89990894,236.8,236.7,12.89990894]
[1732583716511,2.1113,236.82,236.69,4.2249]
[1732583716512,12.89990894,236.76,236.69,4.2249]
[1732583716689,12.89990894,236.74,236.68,21.3868]
[1732583716889,12.89990894,236.74,236.66,12.89990894]
[1732583717398,12.89990894,236.72,236.64,28.83760894]
[1732583717604,12.89990894,236.72,236.64,15.9377]
[1732583717985,15.01210894,236.72,236.64,15.9377]
[1732583718187,12.89990894,236.72,236.64,33.06340894]
[1732583718689,12.89990894,236.7,236.64,15.9377]
[1732583718894,12.89990894,236.7,236.62,19.41260894]
[1732583719207,35.01180894,236.75,236.66,12.89990894]
[1732583719410,12.89990894,236.73,236.66,12.89990894]
[1732583719589,12.89990894,236.73,236.64,12.89990894]
[1732583719906,12.89990894,236.73,236.64,17.12550894]
[1732583720109,32.89990894,236.77,236.68,12.89990894]
[1732583720408,12.89990894,236.77,236.7,12.89990894]
[1732583720609,15.01140894,236.79,236.7,12.89990894]
[1732583720988,15.01140894,236.79,236.64,28.32364606]
[1732583720989,12.89990894,236.75,236.66,12.89990894]
[1732583721695,12.89990894,236.73,236.66,12.89990894]
[1732583721996,15.01180894,236.75,236.66,17.12530894]
[1732583722199,12.89990894,236.73,236.65,4.2256]
[1732583723506,12.89990894,236.69,236.62,19.41260894]
[1732583723714,12.89990894,236.69,236.59,15.9377]
[1732583723715,12.89990894,236.69,236.61,4.2262]
[1732583724222,12.89990894,236.69,236.6,12.89990894]
[1732583724428,12.89990894,236.69,236.6,17.12630894]
[1732583724636,12.89990894,236.67,236.6,12.89990894]
[1732583724810,12.89990894,236.67,236.6,17.12640894]
[1732583725598,12.89990894,236.71,236.62,12.89990894]
[1732583726133,12.89990894,236.71,236.64,12.89990894]
[1732583726298,12.89990894,236.69,236.62,12.89990894]
[1732583726502,12.89990894,236.71,236.62,12.89990894]
[1732583727497,12.89990894,236.71,236.63,4.226]
[1732583727712,10.25792725,236.81,236.63,4.226]
[1732583727713,12.89990894,236.73,236.64,12.89990894]
[1732583728924,12.89990894,236.71,236.63,4.226]
[1732583729100,12.89990894,236.69,236.63,4.226]
[1732583729515,12.89990894,236.69,236.62,12.89990894]
[1732583729726,12.89990894,236.71,236.64,12.89990894]
[1732583729908,23.776884,236.75,236.64,12.89990894]
[1732583729909,12.89990894,236.73,236.64,12.89990894]
[1732583730119,12.89990894,236.77,236.68,12.89990894]
[1732583730723,15.01130894,236.81,236.72,12.89990894]
[1732583731330,12.89990894,236.81,236.74,12.89990894]
[1732583731526,12.89990894,236.83,236.76,12.89990894]
[1732583731727,12.89990894,236.85,236.76,12.89990894]
[1732583732228,12.89990894,236.82,236.75,4.2238]
[1732583734016,12.89990894,236.84,236.75,4.2238]
[1732583734611,12.89990894,236.84,236.76,12.89990894]
[1732583735430,12.89990894,236.84,236.76,17.12340894]
[1732583736424,12.89990894,236.86,236.78,12.89990894]
[1732583737217,32.89990894,236.88,236.78,12.89990894]
[1732583737502,32.89990894,236.88,236.79,4.2231]
[1732583737701,32.89990894,236.88,236.8,12.89990894]
[1732583737925,20.0,236.88,236.8,12.89990894]
[1732583738231,20.0,236.88,236.82,12.89990894]
[1732583738426,32.89990894,236.88,236.8,28.11800894]
[1732583738631,35.01060894,236.88,236.8,28.11800894]
[1732583739517,35.01060894,236.88,236.8,32.34090894]
[1732583740728,35.01060894,236.88,236.8,28.11800894]
[1732583741338,35.01060894,236.88,236.8,32.34090894]
[1732583742440,12.89990894,236.9,236.82,12.89990894]
[1732583742736,15.43240894,236.92,236.84,12.89990894]
[1732583742942,15.43240894,236.92,236.82,12.89990894]
[1732583743230,12.89990894,236.9,236.82,12.89990894]
[1732583744517,12.89990894,236.9,236.82,17.12250894]
[1732583745411,12.89990894,236.92,236.82,17.12250894]
[1732583745820,15.43240894,236.92,236.84,12.89990894]
[1732583746032,12.89990894,236.94,236.86,12.89990894]
[1732583746222,12.89990894,236.96,236.88,12.89990894]
[1732583747012,12.89990894,236.94,236.86,12.89990894]
[1732583747237,12.89990894,236.94,236.84,12.89990894]
[1732583747436,12.89990894,236.92,236.84,12.89990894]
[1732583747640,12.89990894,236.92,236.85,4.222]
[1732583748423,15.43240894,236.92,236.84,12.89990894]
[1732583748643,15.43240894,236.92,236.82,12.89990894]
[1732583748644,12.89990894,236.9,236.82,12.89990894]
[1732583749519,12.89990894,236.9,236.83,4.2224]
[1732583752236,12.89990894,236.92,236.83,4.2224]
[1732583753018,12.89990894,236.88,236.8,15.2181]
[1732583753431,12.89990894,236.86,236.8,15.2181]
[1732583753849,12.89990894,236.86,236.79,19.39240894]
[1732583754931,12.89990894,236.88,236.81,12.89990894]
[1732583756162,20.0,236.87,236.81,12.89990894]
[1732583756647,20.0,236.87,236.8,4.2229]
[1732583757233,20.0,236.87,236.81,12.89990894]
[1732583757838,2.5329,236.88,236.81,12.89990894]
[1732583758036,2.5328,236.89,236.81,12.89990894]
[1732583758243,12.89990894,236.88,236.79,23.61530894]
[1732583759752,15.01060894,236.88,236.79,23.61530894]
[1732583760965,12.89990894,236.84,236.75,29.52530894]
[1732583761268,12.89990894,236.82,236.75,16.6254]
[1732583761435,12.89990894,236.82,236.75,17.12370894]
[1732583761838,12.89990894,236.82,236.73,23.30430894]
[1732583762968,15.01120894,236.82,236.73,23.30430894]
[1732583764947,20.0,236.79,236.73,6.1803]
[1732583765266,12.89990894,236.76,236.7,16.6254]
[1732583766136,7.3895,236.82,236.65,17.12550894]
[1732583766137,12.89990894,236.74,236.65,17.12550894]
[1732583766453,12.89990894,236.72,236.65,4.2256]
[1732583766660,12.89990894,236.74,236.65,17.12550894]
[1732583767362,15.01190894,236.74,236.65,17.12550894]
[1732583769959,12.89990894,236.76,236.67,12.89990894]
[1732583770151,20.0,236.73,236.67,17.12500894]
[1732583770961,32.89990894,236.73,236.65,17.12530894]
[1732583771663,20.0,236.73,236.67,12.89990894]
[1732583771851,15.3184,236.82,236.71,12.89990894]
[1732583772059,12.89990894,236.79,236.71,12.89990894]
[1732583773071,2.1113,236.81,236.73,12.89990894]
[1732583773254,12.89990894,236.85,236.77,12.89990894]
[1732583773464,15.01080894,236.87,236.79,12.89990894]
[1732583774067,12.89990894,236.83,236.75,17.12350894]
[1732583775084,15.01110894,236.83,236.75,17.12350894]
[1732583775779,12.89990894,236.85,236.77,12.89990894]
[1732583776084,12.89990894,236.83,236.75,17.12350894]
[1732583776383,12.89990894,236.83,236.74,16.6254]
[1732583776384,12.89990894,236.79,236.74,16.6254]
[1732583777584,12.89990894,236.81,236.74,16.6254]
[1732583778561,15.01130894,236.81,236.74,16.6254]
[1732583780389,12.89990894,236.76,236.69,4.2247]
[1732583780685,12.89990894,236.74,236.68,15.9583]
[1732583781857,149.6863,236.82,236.68,15.9583]
[1732583781858,15.01160894,236.78,236.7,12.89990894]
[1732583782067,12.89990894,236.8,236.72,12.89990894]
[1732583782282,134.5,236.82,236.74,12.89990894]
[1732583782283,149.51120894,236.82,236.74,12.89990894]
[1732583782490,15.01120894,236.82,236.74,12.89990894]
[1732583783571,12.89990894,236.8,236.72,12.89990894]
[1732583784993,12.89990894,236.8,236.72,17.12420894]
[1732583787474,12.89990894,236.8,236.72,12.89990894]
[1732583787687,12.89990894,236.76,236.68,28.85820894]
[1732583787893,12.89990894,236.74,236.67,6.153]
[1732583789698,15.01190894,236.74,236.67,6.153]
[1732583789898,12.89990894,236.74,236.67,6.153]
[1732583790110,15.01180894,236.76,236.68,12.89990894]
[1732583790582,12.89990894,236.76,236.68,12.89990894]
[1732583790781,20.0,236.75,236.68,12.89990894]
[1732583791107,15.01130894,236.8,236.72,12.89990894]
[1732583791283,134.5,236.81,236.76,12.89990894]
[1732583791601,12.89990894,236.84,236.76,12.89990894]
[1732583791915,15.01100894,236.84,236.76,12.89990894]
[1732583792582,20.0,236.81,236.76,17.12350894]
[1732583792984,15.01100894,236.84,236.76,17.12350894]
[1732583792985,22.1111,236.84,236.76,17.12350894]
[1732583793401,20.0,236.83,236.76,17.12350894]
[1732583793786,22.1111,236.84,236.76,17.12350894]
[1732583793996,35.01100894,236.84,236.76,17.12350894]
[1732583794311,12.89990894,236.82,236.74,12.89990894]
[1732583795594,15.01120894,236.82,236.74,12.89990894]
[1732583795914,35.01100894,236.84,236.76,12.89990894]
[1732583798613,12.89990894,236.82,236.74,12.89990894]
[1732583798801,2.1111,236.84,236.73,19.525]
[1732583798802,12.89990894,236.8,236.73,19.525]
[1732583799002,12.89990894,236.82,236.73,19.525]
[1732583799731,15.01120894,236.82,236.74,12.89990894]
[1732583800709,15.01120894,236.82,236.74,17.12390894]
[1732583801339,15.01120894,236.82,236.74,12.89990894]
[1732583801833,15.01120894,236.82,236.74,17.12380894]
[1732583802029,35.01100894,236.84,236.74,17.12380894]
[1732583802230,35.01100894,236.84,236.76,12.89990894]
[1732583802409,20.0,236.83,236.76,12.89990894]
[1732583803305,20.0,236.83,236.76,17.12350894]
[1732583804030,20.0,236.81,236.76,4.2236]
[1732583804529,20.0,236.81,236.74,17.12380894]
[1732583807807,22.1114,236.81,236.74,12.89990894]
[1732583808434,20.0,236.81,236.74,12.89990894]
[1732583808741,20.0,236.81,236.74,17.12390894]
[1732583809519,2.1102,236.94,236.81,15.7039]
[1732583809842,15.00990894,236.97,236.88,12.89990894]
[1732583810033,12.89990894,236.95,236.86,17.12160894]
[1732583811034,15.01000894,236.95,236.86,17.12160894]
[1732583812520,12.89990894,236.91,236.83,6.2789]
[1732583813548,12.89990894,236.91,236.84,12.89990894]
[1732583814368,12.89990894,236.93,236.84,12.89990894]
[1732583814544,22.1101,236.95,236.83,10.5013]
[1732583814545,12.89990894,236.95,236.86,12.89990894]
[1732583814738,12.89990894,236.95,236.88,12.89990894]
[1732583815565,12.89990894,237.01,236.92,12.89990894]
[1732583815736,12.89990894,237.01,236.94,12.89990894]
[1732583815944,12.89990894,237.03,236.94,19.17880894]
[1732583816255,15.00930894,237.03,236.94,19.17880894]
[1732583817166,20.0,237.0,236.94,19.17880894]
[1732583819534,12.89990894,236.99,236.94,6.2789]
[1732583820468,12.89990894,236.97,236.91,15.7039]
[1732583821066,12.89990894,236.97,236.89,6.2789]
[1732583821246,12.89990894,236.95,236.89,6.2789]
[1732583821446,12.89990894,236.97,236.89,10.5002]
[1732583822050,32.89990894,236.99,236.9,12.89990894]
[1732583822253,134.5,237.02,236.94,12.89990894]
[1732583822443,134.5,237.02,236.89,21.0536]
[1732583822444,2.5312,237.04,236.96,12.89990894]
[1732583823244,2.5312,237.04,236.96,17.11990894]
[1732583823441,12.89990894,237.07,237.0,12.89990894]
[1732583823645,12.89990894,237.09,237.0,12.89990894]
[1732583824955,12.89990894,237.07,237.0,12.89990894]
[1732583825556,12.89990894,237.12,237.04,12.89990894]
[1732583825960,137.0301,237.14,237.07,12.89990894]
[1732583826172,15.42970894,237.17,237.09,12.89990894]
[1732583826461,12.89990894,237.17,237.09,12.89990894]
[1732583826969,15.42970894,237.17,237.09,12.89990894]
[1732583827264,12.89990894,237.14,237.07,28.60380894]
[1732583827465,12.89990894,237.14,237.07,15.7039]
[1732583827768,12.89990894,237.14,237.07,28.60380894]
[1732583827985,15.42980894,237.16,237.07,32.82180894]
[1732583828290,0.4899952,237.23,237.13,12.89990894]
[1732583828473,0.4899952,237.23,237.1,6.2789]
[1732583828474,12.89990894,237.22,237.15,12.89990894]
[1732583828659,3.0191952,237.23,237.1,6.2789]
[1732583828660,0.4899952,237.23,237.17,12.89990894]
[1732583828866,0.4899952,237.23,237.21,12.89990894]
[1732583829062,0.4899952,237.23,237.18,15.7039]
[1732583829063,0.4899952,237.23,237.19,12.89990894]
[1732583830274,0.4899952,237.23,237.19,17.11580894]
[1732583830986,13.38990414,237.23,237.18,15.7039]
[1732583831291,13.38990414,237.23,237.15,12.89990894]
[1732583831595,13.38990414,237.23,237.15,17.11650894]
[1732583832467,15.91910414,237.23,237.15,12.89990894]
[1732583833191,13.38990414,237.23,237.15,12.89990894]
[1732583833698,20.0,237.2,237.13,15.7039]
[1732583834988,13.38990414,237.23,237.14,4.2169]
[1732583835174,0.4899952,237.23,237.19,12.89990894]
[1732583836580,0.4899952,237.23,237.19,17.11580894]
[1732583837065,0.4899952,237.23,237.21,12.89990894]
[1732583838992,0.4899952,237.23,237.22,4.2154]
[1732583839199,0.4899952,237.23,237.22,10.4044]
[1732583840591,0.4899952,237.23,237.22,26.3124]
[1732583840772,0.4899952,237.23,237.22,50.089284]
[1732583841177,0.4899952,237.23,237.22,62.98919294]
[1732583841375,12.89990894,237.38,237.26,20.0]
[1732583841685,12.89990894,237.38,237.3,12.89990894]
[1732583842678,12.89990894,237.38,237.26,12.89990894]
[1732583842679,12.89990894,237.34,237.26,12.89990894]
[1732583843181,2.5276,237.38,237.26,12.89990894]
[1732583843182,12.89990894,237.36,237.26,12.89990894]
[1732583843386,12.89990894,237.38,237.3,12.89990894]
[1732583844906,2.5274,237.39,237.32,12.89990894]
[1732583846103,134.5,237.45,237.36,12.89990894]
[1732583846404,5.85560022,237.47,237.34,15.908]
[1732583846405,12.89990894,237.46,237.38,12.89990894]
[1732583846786,12.89990894,237.46,237.38,17.11250894]
[1732583846986,0.4899952,237.47,237.4,12.89990894]
[1732583847805,12.89990894,237.44,237.36,12.89990894]
[1732583848307,20.46534424,237.45,237.37,20.46534424]
[1732583848696,3.0165952,237.47,237.34,15.908]
[1732583848697,20.46534424,237.43,237.35,20.46534424]
[1732583849585,22.99234424,237.43,237.35,20.46534424]
[1732583849994,22.99234424,237.43,237.34,15.908]
[1732583849995,20.46534424,237.41,237.34,15.908]
[1732583850392,22.99234424,237.43,237.35,20.46534424]
[1732583851016,20.46534424,237.41,237.34,15.908]
[1732583851308,20.46534424,237.39,237.31,20.46534424]
[1732583852197,22.99284424,237.39,237.31,20.46534424]
[1732583852595,2.5272,237.42,237.35,20.46534424]
[1732583852797,20.46534424,237.41,237.33,20.46534424]
[1732583852989,22.99224424,237.45,237.37,20.46534424]
[1732583855182,22.99224424,237.45,237.37,24.67804424]
[1732583855390,20.46534424,237.45,237.37,24.67804424]
[1732583855991,2.5267,237.46,237.37,24.67804424]
[1732583856907,20.46534424,237.45,237.37,24.67804424]
[1732583857106,22.99214424,237.45,237.37,24.67804424]
[1732583858196,43.48203944,237.47,237.39,20.46534424]
[1732583858596,20.0,237.46,237.39,20.46534424]
[1732583858910,40.95533944,237.47,237.39,20.46534424]
[1732583859498,40.95533944,237.47,237.39,24.67764424]
[1732583859802,43.48193944,237.47,237.39,24.67764424]
[1732583863703,20.46534424,237.45,237.36,24.67824424]
[1732583863899,20.46534424,237.45,237.35,15.2675]
[1732583863900,20.46534424,237.43,237.35,15.2675]
[1732583864421,20.46534424,237.43,237.35,19.4806]
[1732583864919,20.46534424,237.43,237.35,15.2675]
[1732583865119,20.46534424,237.39,237.31,4.2138]
[1732583866026,20.46534424,237.39,237.3,20.46534424]
[1732583866227,2.5275,237.38,237.3,24.67934424]
[1732583867511,20.46534424,237.38,237.3,24.67934424]
[1732583867721,20.46534424,237.38,237.28,21.8005]
[1732583867722,20.46534424,237.33,237.28,15.3516]
[1732583868028,143.3446,237.43,237.23,6.0069]
[1732583868029,20.46534424,237.31,237.24,4.215]
[1732583868327,12.80528708,237.32,237.24,17.02028708]
[1732583868710,12.80528708,237.32,237.24,12.80528708]
[1732583868909,12.80528708,237.3,237.23,6.0069]
[1732583869112,12.80528708,237.28,237.22,15.3516]
[1732583869423,12.80528708,237.28,237.2,12.80528708]
[1732583869627,12.80528708,237.26,237.18,18.81218708]
[1732583869809,2.5287,237.27,237.18,18.81218708]
[1732583869810,12.80528708,237.24,237.18,6.0069]
[1732583870126,12.80528708,237.25,237.18,10.223]
[1732583870297,20.0,237.29,237.22,12.80528708]
[1732583870699,12.80528708,237.27,237.19,12.80528708]
[1732583871706,12.80528708,237.27,237.2,4.2158]
[1732583872721,12.80528708,237.26,237.18,18.81218708]
[1732583872926,12.80528708,237.24,237.16,15.3516]
[1732583873114,12.80528708,237.2,237.13,12.80528708]
[1732583873321,2.5287,237.28,237.12,6.0069]
[1732583873322,12.80528708,237.18,237.12,6.0069]
[1732583873521,12.80528708,237.18,237.12,10.2241]
[1732583873945,12.80528708,237.2,237.12,10.2241]
[1732583874446,20.50849566,237.2,237.12,26.51539566]
[1732583874613,20.50849566,237.2,237.12,30.73259566]
[1732583875232,20.50849566,237.22,237.14,20.50849566]
[1732583875538,20.0,237.21,237.16,20.50849566]
[1732583875734,20.50849566,237.24,237.16,24.72499566]
[1732583876033,20.50849566,237.24,237.12,30.73249566]
[1732583876034,20.50849566,237.2,237.12,30.73249566]
[1732583876732,20.50849566,237.22,237.14,20.50849566]
[1732583877141,134.5,237.28,237.16,20.50849566]
[1732583877339,20.50849566,237.26,237.18,20.50849566]
[1732583877633,20.50849566,237.24,237.16,20.50849566]
[1732583877843,20.50849566,237.26,237.18,20.50849566]
[1732583878021,2.5287,237.28,237.2,20.50849566]
[1732583878022,23.03719566,237.28,237.2,20.50849566]
[1732583878421,23.03699566,237.3,237.2,20.50849566]
[1732583878619,20.50849566,237.28,237.2,20.50849566]
[1732583879234,2.5285,237.3,237.13,24.027864]
[1732583879235,20.50849566,237.3,237.22,20.50849566]
[1732583879833,20.50849566,237.3,237.21,4.2155]
[1732583879834,20.50849566,237.28,237.21,4.2155]
[1732583880026,20.50849566,237.28,237.2,20.50849566]
[1732583880734,20.50849566,237.3,237.22,20.50849566]
[1732583880934,20.50849566,237.3,237.2,24.72429566]
[1732583882123,20.50849566,237.28,237.2,24.72429566]
[1732583882324,20.50849566,237.28,237.13,24.027864]
[1732583882325,20.50849566,237.26,237.18,20.50849566]
[1732583883148,20.50849566,237.28,237.18,20.50849566]
[1732583883348,20.50849566,237.28,237.2,20.50849566]
[1732583883733,20.50849566,237.3,237.2,20.50849566]
[1732583884132,20.50849566,237.3,237.22,24.72379566]
[1732583884942,23.03649566,237.34,237.26,20.50849566]
[1732583885745,23.03649566,237.34,237.24,20.50849566]
[1732583885941,20.50849566,237.32,237.23,6.0069]
[1732583886142,20.50849566,237.28,237.23,6.0069]
[1732583886345,20.50849566,237.28,237.21,15.3516]
[1732583886648,20.50849566,237.3,237.23,20.50849566]
[1732583886845,20.50849566,237.3,237.2,4.2157]
[1732583886846,20.50849566,237.28,237.2,4.2157]
[1732583887068,20.50849566,237.26,237.19,20.50849566]
[1732583887263,20.50849566,237.24,237.17,27.09089566]
[1732583887565,20.50849566,237.22,237.16,15.9239]
[1732583887861,33.776884,237.31,237.11,47.23209566]
[1732583887862,23.03799566,237.2,237.11,47.23209566]
[1732583888057,20.50849566,237.18,237.11,47.23209566]
[1732583888459,23.03799566,237.2,237.11,43.01479566]
[1732583888653,20.50849566,237.22,237.15,20.50849566]
[1732583888865,20.50849566,237.2,237.11,47.23219566]
[1732583889953,20.50849566,237.2,237.07,20.50849566]
[1732583889954,20.50849566,237.16,237.07,20.50849566]
[1732583890268,20.50849566,237.14,237.07,20.50849566]
[1732583890480,20.50849566,237.16,237.09,20.50849566]
[1732583890647,20.50849566,237.16,237.07,20.50849566]
[1732583890849,20.50849566,237.14,237.06,20.142]
[1732583891170,20.50849566,237.14,237.06,15.9239]
[1732583891462,20.50849566,237.12,237.06,15.9239]
[1732583891673,20.50849566,237.14,237.06,15.9239]
[1732583891874,20.50849566,237.14,237.06,20.1421]
[1732583892583,20.50849566,237.18,237.09,20.50849566]
[1732583893776,2.5295,237.2,237.07,24.72659566]
[1732583893777,20.50849566,237.16,237.07,24.72659566]
[1732583894382,12.82135831,237.17,237.09,12.82135831]
[1732583895359,12.82135831,237.19,237.09,12.82135831]
[1732583895561,12.82135831,237.21,237.11,12.82135831]
[1732583895799,12.82135831,237.21,237.13,12.82135831]
[1732583896196,12.82135831,237.23,237.15,12.82135831]
[1732583896884,12.82135831,237.25,237.15,12.82135831]
[1732583897089,12.82135831,237.25,237.17,12.82135831]
[1732583898770,12.82135831,237.25,237.17,17.03755831]
[1732583899693,12.82135831,237.23,237.15,17.03795831]
[1732583902101,12.82135831,237.25,237.17,12.82135831]
[1732583904074,12.82135831,237.25,237.18,4.2162]
[1732583905187,12.82135831,237.27,237.19,12.82135831]
[1732583905496,23.776884,237.28,237.19,12.82135831]
[1732583906105,12.82135831,237.25,237.18,4.2162]
[1732583906595,12.82135831,237.25,237.17,17.03765831]
[1732583906891,12.82135831,237.27,237.17,17.03765831]
[1732583908494,12.82135831,237.33,237.23,12.82135831]
[1732583908700,12.82135831,237.33,237.25,12.82135831]
[1732583909673,12.82135831,237.33,237.26,4.2147]
[1732583911166,12.82135831,237.33,237.2,10.5392]
[1732583911167,12.82135831,237.27,237.19,12.82135831]
[1732583911372,12.82135831,237.29,237.21,12.82135831]
[1732583912283,12.82135831,237.29,237.22,4.2154]
[1732583912474,12.82135831,237.27,237.19,12.82135831]
[1732583912688,12.82135831,237.29,237.21,12.82135831]
[1732583913500,12.82135831,237.33,237.25,12.82135831]
[1732583913693,12.82135831,237.35,237.27,12.82135831]
[1732583913889,134.5,237.4,237.29,12.82135831]
[1732583913890,12.82135831,237.37,237.29,12.82135831]
[1732583914394,12.82135831,237.37,237.3,4.214]
[1732583914583,12.82135831,237.39,237.31,12.82135831]
[1732583915099,12.82135831,237.37,237.29,12.82135831]
[1732583915281,12.82135831,237.35,237.26,19.6834]
[1732583916094,12.82135831,237.33,237.26,15.4688]
[1732583916299,12.82135831,237.33,237.26,19.6834]
[1732583916474,23.776884,237.34,237.26,19.6834]
[1732583916887,12.82135831,237.33,237.26,19.6834]
[1732583917398,12.82135831,237.33,237.26,15.4688]
[1732583918007,12.82135831,237.33,237.26,19.6835]
[1732583918684,134.5,237.42,237.26,19.6835]
[1732583918685,6.96233909,237.47,237.34,0.12549]
[1732583918886,0.4899952,237.47,237.4,12.82135831]
[1732583919073,0.4899952,237.47,237.32,15.6558]
[1732583919074,12.82135831,237.44,237.36,12.82135831]
[1732583919274,12.82135831,237.42,237.32,28.47715831]
[1732583919999,23.776884,237.39,237.32,15.6558]
[1732583920208,12.82135831,237.4,237.32,15.6558]
[1732583920404,20.47630167,237.39,237.32,15.6558]
[1732583920980,20.47630167,237.39,237.32,19.8694]
[1732583921302,20.47630167,237.41,237.32,40.34570167]
[1732583921503,20.47630167,237.43,237.34,20.47630167]
[1732583923298,20.47630167,237.43,237.35,4.2131]
[1732583923812,20.47630167,237.45,237.36,20.47630167]
[1732583925485,20.47630167,237.45,237.37,4.2128]
[1732583926099,20.96629687,237.47,237.38,20.47630167]
[1732583926898,23.49289687,237.47,237.38,20.47630167]
[1732583927205,20.96629687,237.47,237.38,20.47630167]
[1732583928011,23.49289687,237.47,237.38,24.68880167]
[1732583929277,20.96629687,237.47,237.38,24.68880167]
[1732583929483,0.4899952,237.47,237.4,20.47630167]
[1732583929892,0.4899952,237.47,237.41,4.2121]
[1732583930099,0.4899952,237.47,237.42,15.174]
[1732583930605,20.47630167,237.45,237.38,6.6509]
[1732583930986,20.47630167,237.43,237.38,6.6509]
[1732583932294,0.4899952,237.47,237.41,20.47630167]
[1732583932813,23.49289687,237.47,237.38,6.6509]
[1732583932988,20.47630167,237.43,237.38,6.6509]
[1732583934710,20.47630167,237.39,237.32,6.6509]
[1732583934909,20.47630167,237.36,237.32,6.6509]
[1732583935217,20.47630167,237.38,237.32,10.8646]
[1732583935388,20.47630167,237.4,237.32,31.34090167]
[1732583936486,20.47630167,237.4,237.32,27.12720167]
[1732583936688,23.00370167,237.4,237.32,27.12720167]
[1732583937305,20.47630167,237.4,237.32,27.12720167]
[1732583937511,20.47630167,237.4,237.32,31.34080167]
[1732583938590,23.00340167,237.42,237.34,20.47630167]
[1732583939205,23.776884,237.43,237.34,20.47630167]
[1732583939388,20.47630167,237.44,237.36,20.47630167]
[1732583939586,23.776884,237.45,237.36,20.47630167]
[1732583939783,20.0,237.42,237.36,20.47630167]
[1732583940308,23.00310167,237.46,237.38,12.78991981]
[1732583940309,15.31671981,237.46,237.38,12.78991981]
[1732583940514,15.31671981,237.46,237.32,21.3987]
[1732583940515,0.4899952,237.47,237.4,12.78991981]
[1732583941992,0.4899952,237.47,237.42,12.78991981]
[1732583942193,0.4899952,237.47,237.44,12.78991981]
[1732583942408,0.4899952,237.47,237.45,4.2114]
[1732583942612,0.4899952,237.47,237.44,17.00141981]
[1732583942814,0.4899952,237.47,237.44,4.2115]
[1732583943417,0.4899952,237.47,237.44,17.00141981]
[1732583946391,0.4899952,237.47,237.46,12.78991981]
[1732583947011,0.4899952,237.47,237.46,17.00111981]
[1732583949703,0.4899952,237.47,237.45,20.0]
[1732583949927,0.4899952,237.47,237.44,17.00131981]
[1732583951003,0.4899952,237.47,237.42,19.02301981]
[1732583951219,0.4899952,237.47,237.42,23.23481981]
[1732583951425,0.4899952,237.47,237.44,12.78991981]
[1732583951917,0.4899952,237.47,237.44,17.00141981]
[1732583952118,0.4899952,237.47,237.42,6.2331]
[1732583952307,0.4899952,237.47,237.42,4.2119]
[1732583952621,0.4899952,237.47,237.41,16.6665]
[1732583952810,0.4899952,237.47,237.42,12.78991981]
[1732583953122,0.4899952,237.47,237.42,17.00181981]
[1732583953714,12.78991981,237.48,237.42,4.2119]
[1732583953901,12.78991981,237.48,237.41,16.6665]